bitfinex/quotes_ETHUSD_20250525
["timestamp","ask_amount","ask_price","bid_price","bid_amount"]
[1748192665900,3.975,2512.2,2511.9,8.0]
[1748192666292,3.975,2512.2,2511.9,3.9810425]
[1748192666492,3.975,2512.2,2511.8,12.52514679]
[1748192667889,3.975,2512.2,2511.9,3.98102499]
[1748192668311,0.47534392,2512.3,2512.2,11.98057479]
[1748192669364,0.47534392,2512.3,2512.2,8.0]
[1748192669616,0.47534392,2512.3,2512.1,4.85327224]
[1748192669617,3.976,2512.4,2512.3,8.0]
[1748192669807,3.976,2512.4,2512.2,8.0]
[1748192670522,3.976,2512.4,2512.1,0.8726]
[1748192670721,3.976,2512.4,2512.2,8.0]
[1748192671310,3.976,2512.4,2512.1,0.8726]
[1748192671672,3.98028634,2512.4,2512.1,0.8726]
[1748192671966,7.95628634,2512.4,2512.1,0.8726]
[1748192672791,3.976,2512.4,2512.1,0.8726]
[1748192673009,4.45551768,2512.5,2512.1,0.8726]
[1748192673213,0.47534392,2512.5,2512.1,4.8532536]
[1748192673442,8.43146264,2512.5,2512.1,6.8190663]
[1748192673725,8.43146264,2512.5,2512.1,2.8384127]
[1748192674025,4.45134392,2512.5,2512.1,2.8384127]
[1748192674242,3.98025947,2512.4,2512.1,2.8384127]
[1748192674535,3.98043572,2512.3,2512.1,2.8384127]
[1748192674818,3.9808852,2512.1,2511.8,8.9127]
[1748192674982,3.9808852,2512.1,2511.8,0.9127]
[1748192675185,3.98094017,2512.0,2511.6,8.9127]
[1748192675386,3.98091653,2512.0,2511.6,4.89418993]
[1748192675721,3.98091653,2512.0,2511.6,1.4403058]
[1748192675927,3.98091653,2512.0,2511.6,1.98432512]
[1748192676113,3.98091653,2512.0,2511.6,5.96584527]
[1748192676308,3.98082922,2512.1,2511.6,13.96584527]
[1748192676515,3.98083887,2512.1,2511.7,8.0]
[1748192677216,3.98090331,2512.0,2511.7,8.54401932]
[1748192677925,7.95665225,2512.2,2511.7,12.52538133]
[1748192678085,3.976,2512.2,2511.8,3.98111869]
[1748192678286,12.67966677,2512.4,2512.1,8.0]
[1748192678709,12.67966677,2512.4,2512.0,0.9309]
[1748192678994,12.6796969,2512.4,2512.0,9.47491932]
[1748192679217,3.98073325,2512.1,2511.9,0.57212443]
[1748192679528,3.98073325,2512.1,2511.7,9.47491932]
[1748192679716,3.98078908,2512.1,2511.7,9.47491932]
[1748192681026,3.98092171,2512.0,2511.7,8.54401932]
[1748192681195,3.98117786,2511.9,2511.5,0.9171]
[1748192681806,3.98117786,2511.9,2511.5,4.89877397]
[1748192682902,3.98097614,2512.0,2511.5,1.46111932]
[1748192683115,3.98097614,2512.0,2511.5,5.44273347]
[1748192683513,7.95697614,2512.0,2511.7,8.0]
[1748192683887,3.976,2512.0,2511.6,8.0]
[1748192684090,7.95697337,2512.0,2511.6,11.98150999]
[1748192684727,8.43231729,2512.0,2511.6,11.98150999]
[1748192685106,8.43231729,2512.0,2511.5,13.44271392]
[1748192685498,8.43231729,2512.0,2511.6,3.98147123]
[1748192685699,8.43231729,2512.0,2511.5,13.44271187]
[1748192685908,8.43231729,2512.0,2511.6,3.98150688]
[1748192686126,9.69588283,2512.0,2511.6,3.98150688]
[1748192686434,3.98114614,2511.9,2511.5,9.46111932]
[1748192686633,9.69590629,2512.0,2511.5,13.44272384]
[1748192686927,9.69590629,2512.0,2511.6,3.98150982]
[1748192687443,0.47534392,2512.0,2511.6,1.11614375]
[1748192687596,0.47534392,2512.0,2511.7,4.52531381]
[1748192688549,0.47534392,2512.0,2511.7,8.54401932]
[1748192688722,3.98114044,2511.9,2511.5,8.9171]
[1748192688920,3.98114044,2511.9,2511.5,12.89877584]
[1748192689126,4.20357915,2512.0,2511.5,12.89877584]
[1748192689936,4.67892307,2512.0,2511.5,12.89877584]
[1748192690116,4.67892307,2512.0,2511.7,8.0]
[1748192690316,6.00587095,2512.0,2511.7,8.0]
[1748192690517,6.00587095,2512.0,2511.5,12.89869266]
[1748192690729,4.67892307,2512.0,2511.5,12.89869266]
[1748192691048,4.67892307,2512.0,2511.5,13.4427224]
[1748192691913,4.67892307,2512.0,2511.7,8.0]
[1748192692113,0.69794392,2512.0,2511.7,8.0]
[1748192692313,0.69794392,2512.0,2511.7,1.11614375]
[1748192692314,0.47534392,2512.0,2511.7,1.11614375]
[1748192692547,0.47534392,2512.0,2511.7,13.09744546]
[1748192692721,0.47534392,2512.0,2511.7,1.11614375]
[1748192692930,3.98112872,2511.9,2511.5,8.9171]
[1748192693224,3.98112872,2511.9,2511.5,12.89878309]
[1748192693855,4.20373115,2511.9,2511.4,12.52578535]
[1748192694231,4.20373115,2511.9,2511.5,3.98166908]
[1748192695044,4.20373115,2511.9,2511.4,12.5257391]
[1748192695241,4.20373115,2511.9,2511.5,3.98167056]
[1748192695561,4.20373115,2511.9,2511.4,0.54401932]
[1748192695562,4.20373115,2511.9,2511.4,4.52578423]
[1748192695917,3.9812342,2511.8,2511.4,8.54401932]
[1748192696120,4.20373356,2511.9,2511.4,12.52577311]
[1748192696432,3.98121423,2511.8,2511.4,12.52577311]
[1748192696617,3.98120869,2511.8,2511.4,8.54401932]
[1748192696948,3.98137716,2511.7,2511.4,8.54401932]
[1748192697119,3.98126863,2511.8,2511.4,8.54401932]
[1748192697653,4.20373137,2511.9,2511.4,8.54401932]
[1748192697955,3.98121141,2511.8,2511.4,12.52576899]
[1748192698250,3.98121141,2511.8,2511.4,8.54401932]
[1748192698754,3.98123103,2511.8,2511.4,12.52584269]
[1748192699053,4.67394392,2511.9,2511.4,12.52584269]
[1748192699256,3.98121123,2511.8,2511.4,12.52584269]
[1748192699856,4.67394392,2511.9,2511.4,12.52584269]
[1748192700050,8.65508888,2511.9,2511.5,3.98167388]
[1748192700263,8.65508888,2511.9,2511.4,5.09789147]
[1748192700264,3.98123748,2511.8,2511.4,5.09789147]
[1748192700444,8.65508033,2511.9,2511.4,5.09789147]
[1748192700649,0.69794392,2511.9,2511.7,8.0]
[1748192700959,9.9457722,2511.9,2511.6,8.0]
[1748192701133,3.98122774,2511.8,2511.5,9.11614375]
[1748192701564,9.94585518,2511.9,2511.5,9.11614375]
[1748192701727,3.98122214,2511.8,2511.5,9.11614375]
[1748192702066,9.4705017,2511.9,2511.5,9.11614375]
[1748192702456,3.98121566,2511.8,2511.5,9.11614375]
[1748192703022,5.48937264,2511.9,2511.5,9.11614375]
[1748192703023,9.47054879,2511.9,2511.5,9.11614375]
[1748192703257,1.81748372,2511.8,2511.5,9.11614375]
[1748192703427,8.17977615,2511.9,2511.5,9.11614375]
[1748192703640,8.65512007,2511.9,2511.5,9.11614375]
[1748192703942,8.65512007,2511.9,2511.5,13.09781282]
[1748192704142,8.65512007,2511.9,2511.5,1.11614375]
[1748192704535,8.65512007,2511.9,2511.5,5.09775989]
[1748192704859,8.65512007,2511.9,2511.5,1.11614375]
[1748192705059,4.67912007,2511.9,2511.5,5.09779227]
[1748192705360,0.47534392,2511.9,2511.7,0.8567]
[1748192706462,8.43224569,2512.0,2511.7,0.8567]
[1748192708045,3.98109062,2511.9,2511.7,0.8567]
[1748192708260,4.45134392,2512.0,2511.7,0.8567]
[1748192708261,8.43230259,2512.0,2511.7,0.8567]
[1748192710239,3.98113978,2511.9,2511.7,0.8567]
[1748192710564,0.47534392,2511.9,2511.7,4.83805637]
[1748192710759,0.47534392,2511.9,2511.7,0.8567]
[1748192711193,0.47534392,2511.9,2511.7,4.83805696]
[1748192711477,0.47534392,2511.9,2511.7,0.8567]
[1748192713438,4.4564047,2511.9,2511.7,0.8567]
[1748192713637,0.47534392,2511.9,2511.7,0.8567]
[1748192713834,1.40845318,2511.9,2511.5,0.8567]
[1748192714087,5.38959639,2511.9,2511.5,8.8567]
[1748192714290,4.45648713,2511.9,2511.5,8.8567]
[1748192714708,3.98121894,2511.8,2511.5,8.8567]
[1748192714860,4.45656286,2511.8,2511.5,0.8567]
[1748192715048,4.45656286,2511.8,2511.5,8.8567]
[1748192715479,0.47534392,2511.8,2511.5,8.8567]
[1748192715997,4.456557,2511.8,2511.5,8.8567]
[1748192717760,3.98136764,2511.7,2511.5,0.8567]
[1748192717982,3.98161582,2511.6,2511.2,0.8637]
[1748192718206,3.98161582,2511.6,2511.2,12.845856]
[1748192718575,4.45695974,2511.6,2511.2,12.845856]
[1748192719200,0.47534392,2511.6,2511.2,13.38987532]
[1748192719507,0.47534392,2511.6,2510.9,0.8637]
[1748192719508,3.98217391,2511.2,2510.9,0.8637]
[1748192719801,3.98224094,2511.2,2510.9,0.54401932]
[1748192720106,8.772,2511.4,2511.1,0.38104268]
[1748192720400,4.20475992,2511.2,2511.1,0.38104268]
[1748192721860,3.976,2511.2,2511.1,0.925062]
[1748192722067,0.63374869,2511.3,2511.1,1.96104375]
[1748192722298,0.63374869,2511.3,2511.1,9.96104375]
[1748192722812,0.63374869,2511.3,2511.1,1.96104375]
[1748192723010,4.61575166,2511.3,2511.1,1.38891932]
[1748192723307,3.98200297,2511.3,2510.9,0.8449]
[1748192723508,3.98214342,2511.3,2510.9,0.8449]
[1748192723711,8.69885414,2511.5,2511.1,3.98223882]
[1748192724016,3.98186055,2511.4,2511.0,12.52643001]
[1748192724489,3.98186055,2511.4,2511.0,4.52649409]
[1748192725212,3.98201299,2511.3,2511.0,8.54401932]
[1748192725415,5.98562317,2511.4,2511.0,5.09861267]
[1748192725576,2.0037018,2511.4,2511.1,3.98230112]
[1748192725782,2.0037018,2511.4,2511.3,0.8635]
[1748192726003,2.0037018,2511.4,2511.3,4.84550135]
[1748192726202,2.0037018,2511.4,2511.3,13.9616451]
[1748192727494,2.0037018,2511.4,2511.3,9.97964375]
[1748192729221,2.0037018,2511.4,2511.3,9.40751932]
[1748192729403,2.0037018,2511.4,2511.3,8.0]
[1748192729927,0.47585414,2511.7,2511.5,3.98160852]
[1748192730239,0.47585414,2511.7,2511.5,0.8635]
[1748192730534,3.98121284,2511.8,2511.3,14.78031973]
[1748192730535,3.98162393,2511.6,2511.3,9.97964375]
[1748192731534,3.98144322,2511.7,2511.3,9.97964375]
[1748192731742,3.98144322,2511.7,2511.3,13.96164026]
[1748192732038,3.9813933,2511.7,2511.3,13.96164026]
[1748192732235,4.45724744,2511.7,2511.3,13.96164026]
[1748192732440,3.98153699,2511.6,2511.3,9.97964375]
[1748192732803,0.47585414,2511.7,2511.3,9.97964375]
[1748192732804,4.457289,2511.7,2511.3,9.97964375]
[1748192732998,3.98155882,2511.6,2511.3,9.97964375]
[1748192733332,3.98153843,2511.6,2511.3,9.97964375]
[1748192734232,4.45732261,2511.7,2511.3,9.97964375]
[1748192734435,4.45732261,2511.7,2511.3,13.9616152]
[1748192734749,3.98155026,2511.6,2511.3,9.97964375]
[1748192734920,4.45731278,2511.7,2511.3,9.97964375]
[1748192735328,4.45731278,2511.7,2511.3,13.96162624]
[1748192735540,0.47585414,2511.7,2511.3,13.96162624]
[1748192735832,0.47585414,2511.7,2511.4,3.98174842]
[1748192736039,0.47585414,2511.7,2511.5,3.98159061]
[1748192736439,0.47585414,2511.8,2511.5,3.98159061]
[1748192736638,0.47585414,2511.8,2511.4,5.09784176]
[1748192736952,0.47585414,2511.8,2511.5,3.98165123]
[1748192737315,0.47585414,2511.8,2511.4,9.11614375]
[1748192737519,0.47585414,2511.8,2511.4,15.91104532]
[1748192737720,0.47585414,2511.9,2511.5,3.98167031]
[1748192738262,0.47585414,2511.9,2511.6,12.02133053]
[1748192738443,0.47585414,2511.9,2511.6,11.9815174]
[1748192738844,8.43374672,2512.0,2511.6,11.9815174]
[1748192739048,8.43374672,2512.0,2511.6,8.0]
[1748192739745,3.9810579,2511.9,2511.6,8.0]
[1748192739949,8.43383405,2512.0,2511.6,8.0]
[1748192740245,4.45682086,2512.0,2511.6,8.0]
[1748192740970,3.98120706,2511.9,2511.6,8.0]
[1748192742154,4.45683267,2512.0,2511.6,8.0]
[1748192742857,3.9810502,2511.9,2511.5,0.57212443]
[1748192743056,3.98143733,2511.7,2511.3,12.84535256]
[1748192743842,4.2038841,2511.8,2511.3,8.0]
[1748192744155,4.2038834,2511.8,2511.3,11.9818602]
[1748192744354,4.2038834,2511.8,2511.4,3.98183214]
[1748192744558,4.2038834,2511.8,2511.3,11.98190772]
[1748192745123,3.98138276,2511.7,2511.3,11.98190772]
[1748192745923,0.2226,2511.8,2511.4,3.9817404]
[1748192746348,8.43303602,2511.9,2511.4,3.9817404]
[1748192746655,8.43303602,2511.9,2511.6,8.0]
[1748192746860,4.45703602,2511.9,2511.6,8.0]
[1748192747167,6.40344255,2511.9,2511.5,0.9143]
[1748192747396,6.40337822,2511.9,2511.5,8.9143]
[1748192747901,3.98123525,2511.8,2511.5,0.9143]
[1748192748050,6.40337822,2511.9,2511.5,0.9143]
[1748192748594,6.40337822,2511.9,2511.5,8.9143]
[1748192748787,6.40337822,2511.9,2511.5,4.89598128]
[1748192750486,6.40337822,2511.9,2511.5,8.9143]
[1748192750656,6.40337822,2511.9,2511.5,12.89598146]
[1748192751007,6.40337822,2511.9,2511.5,4.89597793]
[1748192751557,2.42226067,2511.9,2511.5,8.9143]
[1748192751856,0.47585414,2511.9,2511.5,12.89588407]
[1748192752079,0.47585414,2511.9,2511.6,3.98142949]
[1748192753107,0.47585414,2511.9,2511.6,3.98142809]
[1748192754303,0.47585414,2511.9,2511.7,3.98133977]
[1748192754508,0.47585414,2511.9,2511.7,3.98135579]
[1748192755274,0.47585414,2511.9,2511.8,12.87990869]
[1748192755502,0.47585414,2511.9,2511.8,13.99605241]
[1748192755698,1e-08,2511.9,2511.8,13.99605241]
[1748192756005,0.63374869,2512.1,2511.8,13.99605241]
[1748192756006,1e-08,2512.1,2512.0,12.87079171]
[1748192756511,1e-08,2512.1,2512.0,8.8899]
[1748192757079,2.63745049,2512.3,2511.5,0.8899]
[1748192757080,2.86005049,2512.3,2511.5,0.8899]
[1748192757280,3.98105954,2511.9,2511.6,8.0]
[1748192757482,3.98112883,2511.9,2511.5,0.8899]
[1748192757816,3.98097334,2512.0,2511.5,4.87150129]
[1748192757995,3.98097334,2512.0,2511.6,8.0]
[1748192758574,5.69602705,2512.2,2511.6,11.9813943]
[1748192758575,3.98080012,2512.1,2511.6,11.9813943]
[1748192759109,3.98090143,2512.0,2511.6,8.0]
[1748192759584,1.71538094,2512.2,2511.7,8.0]
[1748192759786,3.98114254,2511.9,2511.5,0.8899]
[1748192759983,3.98114254,2511.9,2511.5,8.8899]
[1748192760790,3.98085849,2512.1,2511.5,4.87156912]
[1748192761009,3.98102545,2512.0,2511.5,4.87156912]
[1748192763074,3.98110904,2511.9,2511.5,4.87156912]
[1748192763274,3.9810131,2512.0,2511.6,3.98150773]
[1748192763494,3.9807859,2512.1,2511.6,3.98150773]
[1748192763914,3.98089674,2512.0,2511.6,3.98150773]
[1748192764075,3.98081586,2512.1,2511.6,3.98150773]
[1748192764405,3.98089956,2512.0,2511.6,3.98150773]
[1748192765628,1.64952837,2512.1,2511.5,4.87156925]
[1748192765629,3.98106242,2511.9,2511.5,4.87156925]
[1748192765781,3.98106242,2511.9,2511.5,4.87155413]
[1748192766416,3.98096302,2512.0,2511.5,4.87155413]
[1748192767093,3.98096302,2512.0,2511.6,3.98143819]
[1748192768255,3.98090345,2512.0,2511.6,4.52545748]
[1748192768528,0.63374869,2512.1,2511.9,0.9297]
[1748192768731,0.63374869,2512.1,2512.0,4.524911]
[1748192768902,0.63374869,2512.1,2512.0,12.524911]
[1748192769697,2.0037018,2512.4,2512.1,3.98063622]
[1748192769897,2.0037018,2512.4,2512.0,12.52483323]
[1748192769898,5.98399452,2512.4,2512.0,12.52483323]
[1748192770107,2.0037018,2512.4,2512.0,8.54401929]
[1748192770331,5.9840423,2512.4,2512.0,8.54401929]
[1748192770546,5.9840423,2512.4,2512.0,12.52482545]
[1748192770693,5.9840423,2512.4,2512.0,8.54401929]
[1748192770896,5.98399608,2512.4,2512.0,8.54401929]
[1748192771251,3.98080121,2512.1,2511.7,4.91106237]
[1748192771608,0.2266,2512.3,2511.9,8.0]
[1748192771961,11.04247478,2512.4,2511.9,8.0]
[1748192772111,3.98048138,2512.3,2511.9,11.98101383]
[1748192772463,3.98048138,2512.3,2511.8,11.98114648]
[1748192772608,3.9805801,2512.2,2511.8,11.98114648]
[1748192773050,3.9805801,2512.2,2511.8,8.0]
[1748192773410,3.9805801,2512.2,2511.8,11.98120729]
[1748192773612,3.9805801,2512.2,2511.8,8.0]
[1748192774457,3.9805801,2512.2,2511.8,11.98119416]
[1748192774755,3.9805801,2512.2,2511.8,11.98120615]
[1748192774756,3.98063843,2512.2,2511.8,11.98120615]
[1748192775099,9.03885711,2512.4,2511.9,3.98099484]
[1748192775293,1.08245046,2512.4,2511.8,11.98120615]
[1748192775491,3.98039642,2512.4,2511.8,11.98120615]
[1748192775757,3.98057597,2512.2,2511.8,11.98120615]
[1748192776246,3.98050077,2512.3,2511.8,11.98120615]
[1748192776397,3.98058201,2512.2,2511.8,11.98120615]
[1748192776799,3.98085534,2512.1,2511.8,8.0]
[1748192777150,3.98067187,2512.2,2511.7,12.91096752]
[1748192777557,3.98083572,2512.1,2511.7,12.91105916]
[1748192777855,4.8401328,2512.2,2511.7,8.9297]
[1748192778005,8.59010001,2512.4,2511.8,0.54401929]
[1748192778328,8.59010001,2512.4,2512.0,3.98087983]
[1748192778657,8.59010001,2512.4,2511.8,0.54401929]
[1748192778658,9.92478998,2512.4,2511.9,3.98094064]
[1748192779026,9.29104129,2512.4,2511.9,3.98094064]
[1748192779557,1.33468997,2512.4,2511.9,3.98094064]
[1748192779848,4.61385364,2512.5,2512.1,3.98065947]
[1748192780146,0.63374869,2512.5,2512.1,3.98067226]
[1748192780442,0.63374869,2512.5,2512.1,8.0]
[1748192780742,0.63374869,2512.5,2512.1,11.98065932]
[1748192781542,6.61345049,2512.6,2512.1,11.98065932]
[1748192781951,6.61746627,2512.6,2512.2,3.98053329]
[1748192782242,2.63745049,2512.6,2512.2,2.57081926]
[1748192782453,2.63745049,2512.6,2512.3,3.98027507]
[1748192782656,2.0037018,2512.6,2512.3,3.98027507]
[1748192783235,0.63374869,2512.7,2512.3,3.98027507]
[1748192783863,0.63374869,2512.7,2512.3,0.8812]
[1748192784158,2.63745049,2512.8,2512.5,3.98003816]
[1748192784365,2.63745049,2512.8,2512.6,4.86112211]
[1748192784723,2.63745049,2512.8,2512.6,0.8812]
[1748192785147,2.63745049,2512.8,2512.6,4.86105108]
[1748192785360,2.0037018,2512.8,2512.6,4.86105108]
[1748192785516,2.0037018,2512.8,2512.6,6.67040252]
[1748192786558,2.0037018,2512.8,2512.6,4.86098825]
[1748192786782,2.0037018,2512.8,2512.5,3.98006657]
[1748192787737,2.0037018,2512.8,2512.6,8.0]
[1748192788361,2.0037018,2512.8,2512.6,3.9798422]
[1748192788963,0.05,2512.9,2512.6,3.9798422]
[1748192789163,0.05,2512.9,2512.4,5.23330776]
[1748192789164,4.02948522,2512.9,2512.4,9.25310315]
[1748192789360,3.9798663,2512.7,2512.3,8.8812]
[1748192789546,0.2266,2512.6,2511.9,3.975]
[1748192789860,0.2266,2512.6,2512.0,8.0]
[1748192790270,3.98026321,2512.4,2512.0,8.0]
[1748192790570,3.98026321,2512.4,2512.1,1.64999902]
[1748192790870,4.20654288,2512.6,2512.1,6.17468353]
[1748192791066,3.98011087,2512.5,2512.1,2.19401831]
[1748192792032,3.98011087,2512.5,2512.1,6.17474642]
[1748192792327,3.98011087,2512.5,2512.1,2.19401831]
[1748192792328,3.98018794,2512.5,2512.1,2.19401831]
[1748192792537,0.81867968,2512.5,2511.9,0.57212443]
[1748192792772,4.79889288,2512.5,2512.0,3.98077331]
[1748192792979,3.98073359,2512.1,2511.8,0.8489]
[1748192793135,0.2266,2512.2,2511.6,0.9015]
[1748192793342,0.2266,2512.2,2511.5,4.51901929]
[1748192793343,3.98130291,2511.8,2511.5,4.51901929]
[1748192793536,3.98130291,2511.8,2511.5,3.975]
[1748192793744,3.98098245,2512.0,2511.6,0.99288804]
[1748192794050,3.98098245,2512.0,2511.6,8.99288804]
[1748192794268,3.98105836,2511.9,2511.6,8.99288804]
[1748192794463,3.98123376,2511.8,2511.6,0.99288804]
[1748192794973,3.98123376,2511.8,2511.6,8.99288804]
[1748192795275,3.98113557,2511.9,2511.6,8.99288804]
[1748192795471,3.98100458,2512.0,2511.6,8.99288804]
[1748192795650,3.98100458,2512.0,2511.6,8.0]
[1748192796172,3.98109685,2511.9,2511.6,8.0]
[1748192796473,3.98100458,2512.0,2511.6,8.0]
[1748192796687,3.98100458,2512.0,2511.6,11.9815176]
[1748192796987,3.98100458,2512.0,2511.6,8.0]
[1748192797192,3.98105798,2511.9,2511.6,8.0]
[1748192797532,3.98122066,2511.8,2511.6,8.0]
[1748192797695,3.98073325,2512.1,2511.6,8.0]
[1748192797898,3.98089171,2512.0,2511.6,8.0]
[1748192798244,3.98119282,2511.9,2511.6,8.0]
[1748192798444,3.98121497,2511.8,2511.5,8.0]
[1748192798989,3.98095842,2512.0,2511.5,11.98165771]
[1748192799360,3.98121574,2511.8,2511.5,8.0]
[1748192799877,3.98114484,2511.9,2511.6,8.0]
[1748192801295,0.2266,2512.2,2511.8,3.98112469]
[1748192801503,0.63374869,2512.3,2511.9,8.0]
[1748192801660,0.63374869,2512.3,2511.9,1.11614372]
[1748192801859,4.61416879,2512.3,2511.9,13.09711639]
[1748192802166,0.63374869,2512.3,2511.9,13.09711639]
[1748192802387,0.2261,2512.2,2511.9,8.0]
[1748192802592,0.2261,2512.2,2511.2,1.96956205]
[1748192802593,3.98128288,2511.8,2511.4,8.0]
[1748192802794,3.98158108,2511.6,2511.3,2.04754372]
[1748192802967,3.98158108,2511.6,2511.2,11.98215379]
[1748192803297,3.98215992,2511.2,2511.1,0.39134644]
[1748192803595,3.98190782,2511.4,2511.0,8.0]
[1748192804372,3.98190782,2511.4,2511.0,11.9824472]
[1748192804573,3.98190782,2511.4,2511.0,8.0]
[1748192804776,3.98190782,2511.4,2510.9,3.9826357]
[1748192804980,3.98190782,2511.4,2511.0,1.43369532]
[1748192805198,3.98190782,2511.4,2511.0,9.43369532]
[1748192805396,3.98190782,2511.4,2511.0,13.41615675]
[1748192806418,4.234,2511.7,2511.1,0.54401929]
[1748192806570,4.234,2511.7,2511.3,3.98192774]
[1748192806772,4.234,2511.7,2511.3,1.11614372]
[1748192806773,8.21536927,2511.7,2511.3,1.11614372]
[1748192807381,3.98168745,2511.5,2511.3,1.11614372]
[1748192807896,3.98140957,2511.7,2511.0,5.71918117]
[1748192808094,3.98178972,2511.5,2511.0,6.26316356]
[1748192808314,3.98178972,2511.5,2511.1,1.88179117]
[1748192808477,3.98148058,2511.7,2511.1,5.86410169]
[1748192808478,3.98159709,2511.6,2511.1,5.86410169]
[1748192808675,8.761,2511.8,2511.2,0.54401929]
[1748192808903,3.9815572,2511.6,2511.2,5.09817809]
[1748192809080,3.9815572,2511.6,2511.2,1.11614372]
[1748192809402,3.9815572,2511.6,2511.2,5.09829413]
[1748192809590,0.2261,2511.7,2511.2,6.36816659]
[1748192809778,4.235,2511.8,2511.2,2.38607031]
[1748192809978,0.2261,2511.9,2511.5,3.98157112]
[1748192810181,9.96066892,2512.0,2511.6,0.54401929]
[1748192811688,5.98466892,2512.0,2511.6,0.54401929]
[1748192812407,2.0037018,2512.0,2511.6,4.52542896]
[1748192812703,2.0037018,2512.0,2511.7,3.9813672]
[1748192813001,2.0037018,2512.0,2511.6,4.52554461]
[1748192813002,2.0037018,2512.0,2511.6,4.52545131]
[1748192813302,5.9846638,2512.0,2511.6,0.54401929]
[1748192813504,2.0037018,2512.0,2511.6,0.54401929]
[1748192814005,5.98468992,2512.0,2511.6,0.54401929]
[1748192814201,2.0037018,2512.0,2511.6,0.54401929]
[1748192814403,2.0037018,2512.0,2511.6,4.5254639]
[1748192814769,3.98089394,2512.0,2511.6,0.54401929]
[1748192815002,0.2261,2512.1,2511.6,4.52554258]
[1748192815196,4.20692869,2512.1,2511.7,3.98136473]
[1748192815406,4.20692869,2512.1,2511.6,6.17618201]
[1748192816108,3.98092363,2512.0,2511.6,6.17618201]
[1748192817013,3.98106356,2511.9,2511.6,2.19474653]
[1748192817216,3.98098011,2512.0,2511.6,2.19474653]
[1748192817907,3.98105278,2511.9,2511.6,2.19474653]
[1748192818104,3.98095878,2512.0,2511.6,2.19474653]
[1748192818309,8.68554966,2512.2,2511.4,7.95777903]
[1748192818310,3.98112049,2511.9,2511.4,15.95769517]
[1748192818508,3.98112049,2511.9,2511.5,3.98168311]
[1748192819216,3.98099451,2512.0,2511.5,3.98168311]
[1748192819513,3.98099451,2512.0,2511.5,3.98168425]
[1748192819713,3.98099451,2512.0,2511.6,3.98151207]
[1748192820289,0.47454966,2512.1,2511.7,3.98135965]
[1748192820482,0.47454966,2512.1,2511.7,1.43562443]
[1748192820687,4.455396,2512.1,2511.7,1.43562443]
[1748192820911,0.47454966,2512.1,2511.7,1.43562443]
[1748192821112,4.45539019,2512.1,2511.7,1.43562443]
[1748192821508,3.98097933,2512.0,2511.7,1.43562443]
[1748192821708,3.98097933,2512.0,2511.7,0.8635]
[1748192821988,0.47454966,2512.1,2511.7,1.99994968]
[1748192822189,0.47454966,2512.1,2511.7,0.8635]
[1748192822721,0.47454966,2512.1,2511.8,3.9811044]
[1748192822928,4.45513369,2512.2,2511.8,4.52512369]
[1748192823782,0.47454966,2512.2,2512.0,3.98089046]
[1748192823987,0.47454966,2512.3,2512.0,3.98089046]
[1748192824438,0.47454966,2512.3,2511.9,3.98099922]
[1748192824647,0.47454966,2512.3,2512.1,4.83304196]
[1748192824790,0.47454966,2512.3,2512.1,4.83304271]
[1748192825139,0.47454966,2512.3,2512.1,0.8524]
[1748192825319,0.47454966,2512.4,2512.1,0.8524]
[1748192825704,0.47454966,2512.4,2512.1,4.83313218]
[1748192825937,0.47454966,2512.4,2512.1,6.76576399]
[1748192826236,4.45473071,2512.5,2512.1,2.78503181]
[1748192827394,4.45473071,2512.5,2512.1,6.76576181]
[1748192827892,0.47454966,2512.5,2512.1,2.78503181]
[1748192828094,4.45472868,2512.5,2512.1,6.76576212]
[1748192828328,0.47454966,2512.5,2512.3,3.98037939]
[1748192828497,0.47454966,2512.5,2512.4,4.02005779]
[1748192828699,0.47454966,2512.5,2512.4,13.40197721]
[1748192828907,0.47454966,2512.5,2512.4,8.8777]
[1748192829719,0.05,2512.9,2512.5,8.0]
[1748192829907,0.05,2512.9,2512.5,13.6677824]
[1748192830324,4.02947558,2512.9,2512.5,13.6677824]
[1748192830926,3.97965847,2512.8,2512.5,8.0]
[1748192831321,0.05,2512.9,2512.5,8.0]
[1748192831322,4.02955397,2512.9,2512.5,8.0]
[1748192832952,3.97962856,2512.8,2512.5,8.0]
[1748192833325,4.02954722,2512.9,2512.5,8.0]
[1748192834606,3.97962798,2512.8,2512.5,8.0]
[1748192834809,4.02954458,2512.9,2512.5,8.0]
[1748192835211,4.02958463,2512.9,2512.5,8.0]
[1748192835924,0.05,2512.9,2512.7,8.0]
[1748192836269,0.05,2512.9,2512.2,1.53097814]
[1748192836270,0.05,2512.9,2512.2,2.44447814]
[1748192836450,3.98023715,2512.5,2512.2,0.9135]
[1748192836607,3.98023715,2512.5,2512.0,3.9808059]
[1748192836608,4.20618903,2512.6,2512.0,12.89430417]
[1748192836808,3.98026738,2512.4,2512.0,12.89430417]
[1748192837004,3.98077417,2512.1,2511.7,3.98130345]
[1748192837254,0.55,2512.5,2511.8,0.70913764]
[1748192837589,0.2262,2512.2,2511.7,0.9135]
[1748192837740,0.2262,2512.2,2511.6,1.11614372]
[1748192837741,3.98104025,2512.0,2511.6,5.09114372]
[1748192837913,3.98104025,2512.0,2511.7,8.0]
[1748192838114,3.98096401,2512.0,2511.7,8.0]
[1748192838330,3.98114668,2511.9,2511.7,8.0]
[1748192839111,3.9811265,2511.9,2511.7,8.0]
[1748192839807,3.98131741,2511.8,2511.3,0.9135]
[1748192840023,3.98129926,2511.8,2511.4,0.57212443]
[1748192840213,8.21329926,2511.8,2511.4,13.09797302]
[1748192840429,4.232,2511.8,2511.4,9.11614372]
[1748192840857,0.47454966,2512.1,2511.5,0.89421541]
[1748192841028,0.47454966,2512.1,2512.0,12.83529171]
[1748192841367,0.47454966,2512.1,2512.0,9.97054372]
[1748192841852,3.98054429,2512.3,2512.1,8.0]
[1748192842153,3.98054429,2512.3,2512.0,1.42652443]
[1748192842782,3.98054429,2512.3,2512.0,0.8544]
[1748192843152,3.98034253,2512.4,2512.0,0.8544]
[1748192843357,3.98034253,2512.4,2512.1,0.48354061]
[1748192843758,3.98042697,2512.3,2512.1,0.48354061]
[1748192843953,3.98036454,2512.4,2512.1,0.48354061]
[1748192844160,3.98036454,2512.4,2512.0,8.8544]
[1748192844363,4.70654966,2512.5,2512.0,12.83519147]
[1748192844706,0.47454966,2512.5,2512.1,11.98066253]
[1748192845048,4.45474092,2512.5,2512.1,8.0]
[1748192845285,3.98019126,2512.5,2512.1,8.0]
[1748192845439,3.98019126,2512.5,2512.1,9.68162712]
[1748192846415,3.9800995,2512.5,2512.1,8.0]
[1748192846689,3.98034633,2512.4,2512.1,8.0]
[1748192847041,3.98041762,2512.3,2512.1,8.0]